bitfinex/quotes_BTCUSD_20250718
["timestamp","ask_amount","ask_price","bid_price","bid_amount"]
[1752861880313,0.2747207,117640.0,117630.0,0.00015015]
[1752861881606,0.2590207,117640.0,117630.0,0.1701748]
[1752861881823,0.2590207,117640.0,117630.0,0.17867596]
[1752861882028,0.2590207,117640.0,117630.0,0.17867603]
[1752861882230,0.25052056,117640.0,117630.0,0.00015015]
[1752861882434,0.25052056,117640.0,117630.0,0.17867603]
[1752861883048,0.25052056,117640.0,117630.0,0.18717719]
[1752861883249,0.25052056,117640.0,117630.0,0.17867603]
[1752861883457,0.2420202,117640.0,117630.0,0.17867603]
[1752861883652,0.2420202,117640.0,117630.0,0.00015015]
[1752861884775,0.2420202,117640.0,117630.0,0.17867596]
[1752861884979,0.2420202,117640.0,117630.0,0.1701748]
[1752861885831,0.2420202,117640.0,117630.0,0.00015015]
[1752861886475,0.2420202,117640.0,117630.0,0.17867603]
[1752861887056,0.2420202,117640.0,117630.0,0.00015015]
[1752861889069,0.2420202,117640.0,117630.0,0.1701748]
[1752861889280,0.2420202,117640.0,117630.0,0.00015015]
[1752861890773,0.2420202,117640.0,117630.0,0.1701748]
[1752861890884,0.2420202,117640.0,117630.0,0.17867596]
[1752861891114,0.2420202,117640.0,117630.0,0.00015015]
[1752861891997,0.2420202,117640.0,117630.0,0.18717719]
[1752861892234,0.2261202,117640.0,117630.0,0.18717719]
[1752861892441,0.05949985,117640.0,117630.0,0.70811469]
[1752861892639,0.001,117640.0,117630.0,0.86800541]
[1752861893017,0.051,117640.0,117630.0,0.86800541]
[1752861893218,0.05949985,117640.0,117630.0,0.86800541]
[1752861894464,0.051,117640.0,117630.0,0.86800541]
[1752861895876,0.05949993,117640.0,117630.0,0.38208971]
[1752861896110,0.05949993,117640.0,117630.0,0.86800541]
[1752861896273,0.07650007,117640.0,117630.0,0.86800541]
[1752861896469,0.06799993,117640.0,117630.0,0.86800541]
[1752861897171,0.07650007,117640.0,117630.0,0.86800541]
[1752861897345,0.26862092,117640.0,117630.0,0.33899914]
[1752861897653,0.26742099,117640.0,117630.0,0.3029748]
[1752861897908,0.26742099,117640.0,117630.0,0.31997719]
[1752861898150,0.25042063,117640.0,117630.0,0.31147603]
[1752861898400,0.2419202,117640.0,117630.0,0.14145138]
[1752861898640,0.2419202,117640.0,117630.0,0.31997719]
[1752861899301,0.2419202,117640.0,117630.0,0.32847827]
[1752861899772,0.2419202,117640.0,117630.0,0.3029748]
[1752861899979,0.2419202,117640.0,117630.0,0.13295015]
[1752861900220,0.2419202,117640.0,117630.0,0.3029748]
[1752861900425,0.2419202,117640.0,117630.0,0.13295015]
[1752861900638,0.2569202,117640.0,117630.0,0.13295015]
[1752861901254,0.2569202,117640.0,117630.0,0.31147588]
[1752861901391,0.2419202,117640.0,117630.0,0.31147588]
[1752861902073,0.2419202,117640.0,117630.0,0.31147603]
[1752861902403,0.2419202,117640.0,117630.0,0.31997719]
[1752861902803,0.2419202,117640.0,117630.0,0.3284782]
[1752861903452,0.2419202,117640.0,117630.0,0.31997719]
[1752861904092,0.2419202,117640.0,117630.0,0.14145138]
[1752861904312,0.2419202,117640.0,117630.0,0.13295015]
[1752861904542,0.7431359,117640.0,117630.0,0.00015015]
[1752861904795,0.96140618,117640.0,117630.0,0.00015015]
[1752861905452,1.44802188,117640.0,117630.0,0.00015015]
[1752861905670,0.96210618,117640.0,117630.0,0.00015015]
[1752861906105,1.44802188,117640.0,117630.0,0.00015015]
[1752861906588,1.78702188,117640.0,117630.0,0.00015015]
[1752861906776,1.78802188,117640.0,117630.0,1e-08]
[1752861906996,1.80186273,117640.0,117630.0,1e-08]
[1752861907255,1.87962839,117640.0,117630.0,1e-08]
[1752861907429,2.18970839,117640.0,117630.0,1e-08]
[1752861907647,2.39378839,117640.0,117630.0,1e-08]
[1752861908087,2.41865728,117640.0,117630.0,1e-08]
[1752861908308,2.42065728,117640.0,117630.0,1e-08]
[1752861908541,2.42365728,117640.0,117630.0,1e-08]
[1752861908999,1.98226273,117640.0,117630.0,1e-08]
[1752861909209,1.97198273,117640.0,117630.0,1e-08]
[1752861909440,2.07198273,117640.0,117630.0,1e-08]
[1752861909650,2.07598273,117640.0,117630.0,1e-08]
[1752861910097,2.08391518,117640.0,117630.0,1e-08]
[1752861910323,2.23391518,117640.0,117630.0,1e-08]
[1752861910565,2.24977543,117640.0,117630.0,1e-08]
[1752861910993,2.25572215,117640.0,117630.0,1e-08]
[1752861911431,2.25571884,117640.0,117630.0,1e-08]
[1752861914039,2.2834845,117640.0,117630.0,1e-08]
[1752861914282,2.8194002,117640.0,117630.0,1e-08]
[1752861914509,2.84526909,117640.0,117630.0,1e-08]
[1752861914741,2.35935339,117640.0,117630.0,1e-08]
[1752861915123,2.86349438,117640.0,117630.0,1e-08]
[1752861915351,2.37757868,117640.0,117630.0,1e-08]
[1752861916058,2.86349438,117640.0,117630.0,1e-08]
[1752861916301,2.84526909,117640.0,117630.0,1e-08]
[1752861916530,7.86348283,117640.0,117630.0,1e-08]
[1752861919341,7.37756713,117640.0,117630.0,1e-08]
[1752861919787,7.86348283,117640.0,117630.0,1e-08]
[1752861920232,7.37756713,117640.0,117630.0,1e-08]
[1752861920683,7.37754791,117640.0,117630.0,1e-08]
[1752861920907,0.7551741,117610.0,117600.0,0.0022]
[1752861921133,1.01721352,117610.0,117600.0,0.0022]
[1752861921353,1.02511087,117610.0,117600.0,0.0022]
[1752861921567,1.02825087,117610.0,117600.0,0.0022]
[1752861922032,1.53970657,117610.0,117600.0,0.0022]
[1752861922254,1.54170657,117610.0,117600.0,0.0022]
[1752861922488,0.54700628,117610.0,117600.0,0.0022]
[1752861922762,1.03292198,117610.0,117600.0,0.0022]
[1752861922988,1.15796198,117610.0,117600.0,0.0022]
[1752861923209,1.20006463,117610.0,117600.0,0.0022]
[1752861923427,1.33282463,117610.0,117600.0,0.00434]
[1752861923853,1.33282463,117610.0,117600.0,0.0022]
[1752861924288,1.3571216,117610.0,117600.0,0.0022]
[1752861924499,1.35735764,117610.0,117600.0,0.0022]
[1752861925359,1.36525576,117610.0,117600.0,0.0022]
[1752861926255,1.36519317,117610.0,117600.0,0.0022]
[1752861927110,0.87927747,117610.0,117600.0,0.0022]
[1752861927333,1.36519317,117610.0,117600.0,0.0022]
[1752861928738,1.34879317,117610.0,117600.0,0.0022]
[1752861931067,1.36429317,117610.0,117600.0,0.0022]
[1752861931707,1.23153317,117610.0,117600.0,0.0022]
[1752861931910,1.36429317,117610.0,117600.0,0.0022]
[1752861932085,1.23157001,117610.0,117600.0,0.0022]
[1752861932295,1.36433001,117610.0,117600.0,0.0022]
[1752861934420,1.56433001,117610.0,117600.0,0.0022]
[1752861934641,1.58043001,117610.0,117600.0,0.0022]
[1752861936322,1.58638245,117610.0,117600.0,0.0022]
[1752861937707,1.57028245,117610.0,117600.0,0.0022]
[1752861937914,1.08436675,117610.0,117600.0,0.0022]
[1752861938127,1.56433001,117610.0,117600.0,0.0022]
[1752861938326,1.57028587,117610.0,117600.0,0.0022]
[1752861938547,1.56433001,117610.0,117600.0,0.0022]
[1752861938795,1.41607001,117610.0,117600.0,0.0022]
[1752861939245,1.54883001,117610.0,117600.0,0.0022]
[1752861939716,1.54091914,117610.0,117600.0,0.0022]
[1752861939953,1.52509739,117610.0,117600.0,0.0022]
[1752861941414,1.54342112,117610.0,117600.0,0.0022]
[1752861941627,1.52509739,117610.0,117600.0,0.0022]
[1752861941836,1.54342116,117610.0,117600.0,0.0022]
[1752861942047,1.54342114,117610.0,117600.0,0.0022]
[1752861942846,1.55962114,117610.0,117600.0,0.0022]
[1752861944462,1.07370544,117610.0,117600.0,0.0022]
[1752861944662,1.54129739,117610.0,117600.0,0.0022]
[1752861944915,1.55961793,117610.0,117600.0,0.0022]
[1752861945345,1.54341793,117610.0,117600.0,0.0022]
[1752861946558,0.55310868,117610.0,117600.0,0.02059]
[1752861946769,0.47756868,117610.0,117600.0,0.03936]
[1752861946974,0.66028868,117610.0,117600.0,0.03936]
[1752861948152,1.231964,117610.0,117600.0,0.03936]
[1752861948355,1.14620438,117610.0,117600.0,0.03936]
[1752861949630,1.14620438,117610.0,117600.0,0.03639]
[1752861950956,0.66028868,117610.0,117600.0,0.03639]
[1752861951159,1.14620438,117610.0,117600.0,0.03639]
[1752861951573,1.14620438,117610.0,117600.0,0.03936]
[1752861951992,0.61028868,117610.0,117600.0,0.03936]
[1752861952217,0.2635021,117610.0,117600.0,0.24059645]
[1752861952469,0.22200441,117610.0,117600.0,0.72935644]
[1752861952692,0.27200441,117610.0,117600.0,0.72935644]
[1752861952931,0.07200441,117610.0,117600.0,0.72935644]
[1752861953184,0.08050694,117610.0,117600.0,0.72935644]
[1752861953636,0.07200441,117610.0,117600.0,0.72935644]
[1752861953902,0.08050687,117610.0,117600.0,0.72935644]
[1752861954605,0.18050687,117610.0,117600.0,0.72935644]
[1752861954785,0.1890094,117610.0,117600.0,0.72935644]
[1752861955317,0.1890094,117610.0,117600.0,0.24344074]
[1752861955532,0.197512,117610.0,117600.0,0.72935644]
[1752861956350,0.1890094,117610.0,117600.0,0.72935644]
[1752861956759,0.1890094,117610.0,117600.0,0.24344074]
[1752861956987,0.1890094,117610.0,117600.0,0.86207644]
[1752861957541,0.18050687,117610.0,117600.0,0.9285392]
[1752861957747,0.105,117610.0,117600.0,0.9285392]
[1752861957946,0.005,117610.0,117600.0,1.42899575]
[1752861958792,0.003,117610.0,117600.0,1.76899575]
[1752861958971,0.05,117620.0,117610.0,0.22706071]
[1752861959183,0.06,117630.0,117620.0,0.22704408]
[1752861959361,0.06,117630.0,117620.0,0.85063978]
[1752861959566,0.01,117630.0,117620.0,0.85063978]
[1752861959893,0.09400318,117630.0,117620.0,0.36472408]
[1752861960076,0.09400318,117630.0,117620.0,0.85063978]
[1752861960277,0.26402783,117630.0,117620.0,0.16918]
[1752861960591,0.28284872,117630.0,117620.0,0.36472452]
[1752861960829,0.28284872,117630.0,117620.0,0.37322618]
[1752861961004,0.2658472,117630.0,117620.0,0.03349]
[1752861961195,0.08750311,117630.0,117620.0,0.22903416]
[1752861961404,0.0875026,117630.0,117620.0,0.2405456]
[1752861961626,0.25752725,117630.0,117620.0,0.23204416]
[1752861961974,0.0885026,117630.0,117620.0,0.2405456]
[1752861962191,0.08000152,117630.0,117620.0,0.2405456]
[1752861962404,0.08000152,117630.0,117620.0,0.81222092]
[1752861962817,0.07150065,117630.0,117620.0,0.81222092]
[1752861963025,0.08000152,117630.0,117620.0,0.7264613]
[1752861963585,0.08850246,117630.0,117620.0,0.7264613]
[1752861963740,0.08000152,117630.0,117620.0,0.7264613]
[1752861963943,0.08000144,117630.0,117620.0,0.7264613]
[1752861964153,0.063,117630.0,117620.0,0.7264613]
[1752861964355,0.08000137,117630.0,117620.0,0.7264613]
[1752861964574,0.0800013,117630.0,117620.0,0.7264613]
[1752861964781,0.09700325,117630.0,117620.0,0.7264613]
[1752861965212,0.26702899,117630.0,117620.0,0.21504091]
[1752861965428,0.26702899,117630.0,117620.0,0.3650843]
[1752861965873,0.25852812,117630.0,117620.0,0.3650843]
[1752861966302,0.24152588,117630.0,117620.0,0.34808098]
[1752861966525,0.23302465,117630.0,117620.0,0.16653]
[1752861966967,0.71894035,117630.0,117620.0,0.15043]
[1752861967179,0.23501465,117630.0,117620.0,0.15043]
[1752861967382,0.23501465,117630.0,117620.0,0.34537105]
[1752861967604,0.23302465,117630.0,117620.0,0.34537105]
[1752861968040,0.23302465,117630.0,117620.0,0.16683]
[1752861968248,0.23302465,117630.0,117620.0,0.15043]
[1752861969425,0.23302465,117630.0,117620.0,0.32897105]
[1752861970039,0.23302465,117630.0,117620.0,0.15043]
[1752861970464,0.23813465,117630.0,117620.0,0.13507]
[1752861970998,0.80956063,117630.0,117620.0,0.13308]
[1752861971401,0.32364493,117630.0,117620.0,0.13308]
[1752861972450,0.22854091,117620.0,117610.0,0.34610623]
[1752861972674,0.22854091,117620.0,117610.0,0.36506114]
[1752861974462,0.22854091,117620.0,117610.0,0.37356345]
[1752861974880,0.22854091,117620.0,117610.0,0.36506114]
[1752861975797,0.22854091,117620.0,117610.0,0.37356345]
[1752861976387,0.06700354,117620.0,117610.0,0.38206562]
[1752861976613,0.05,117620.0,117610.0,0.38206562]
[1752861976856,0.0585013,117620.0,117610.0,0.86798132]
[1752861977500,0.08400607,117620.0,117610.0,0.38206562]
[1752861977681,0.08400607,117620.0,117610.0,0.86798132]
[1752861978315,0.08400599,117620.0,117610.0,0.86798132]
[1752861978925,0.06700267,117620.0,117610.0,0.86798132]
[1752861979314,0.0585013,117620.0,117610.0,0.86798132]
[1752861979726,0.07550426,117620.0,117610.0,0.86798132]
[1752861979929,0.08400607,117620.0,117610.0,0.86798132]
[1752861980137,0.08400599,117620.0,117610.0,0.86798132]
[1752861980338,0.07550426,117620.0,117610.0,0.86798132]
[1752861981021,0.05,117620.0,117610.0,0.86798132]
[1752861981232,0.06700282,117620.0,117610.0,0.86798132]
[1752861981672,0.08400621,117620.0,117610.0,0.86798132]
[1752861982098,0.06700274,117620.0,117610.0,0.86798132]
[1752861982300,0.07550426,117620.0,117610.0,0.86798132]
[1752861982689,0.06700267,117620.0,117610.0,0.86798132]
[1752861982905,0.07550426,117620.0,117610.0,0.86798132]
[1752861983049,0.07550419,117620.0,117610.0,0.86798132]
[1752861983238,0.08400585,117620.0,117610.0,0.86798132]
[1752861983880,0.09250766,117620.0,117610.0,0.86798132]
[1752861984670,0.08400585,117620.0,117610.0,0.86798132]
[1752861985100,0.09250766,117620.0,117610.0,0.86798132]
[1752861985278,0.26254741,117620.0,117610.0,0.35415345]
[1752861985475,0.26254741,117620.0,117610.0,0.84857139]
[1752861986357,0.24554452,117620.0,117610.0,0.35374876]
[1752861986559,0.24554452,117620.0,117610.0,0.36225114]
[1752861987216,0.24554452,117620.0,117610.0,0.37075338]
[1752861987470,0.06700347,117620.0,117610.0,0.38226555]
[1752861987699,0.24554445,117620.0,117610.0,0.38226555]
[1752861987944,0.2540464,117620.0,117610.0,0.37376338]
[1752861988170,0.07550535,117620.0,117610.0,0.38226555]
[1752861989111,0.24554445,117620.0,117610.0,0.36526114]
[1752861989598,0.23704279,117620.0,117610.0,0.33714876]
[1752861989850,0.23704279,117620.0,117610.0,0.20410876]
[1752861990135,0.22854098,117620.0,117610.0,0.33027136]
[1752861990377,0.23053098,117620.0,117610.0,0.00195]
[1752861990616,0.22855623,117610.0,117600.0,0.31348968]
[1752861990873,0.23069623,117610.0,117600.0,0.33247597]
[1752861991104,0.23069623,117610.0,117600.0,0.32397286]
[1752861991337,0.22855623,117610.0,117600.0,0.31546968]
[1752861991567,0.22855623,117610.0,117600.0,0.32397293]
[1752861991807,0.23069623,117610.0,117600.0,0.33347611]
[1752861992278,0.22855623,117610.0,117600.0,0.33347611]
[1752861992779,0.23705869,117610.0,117600.0,0.36698211]
[1752861993061,0.23705869,117610.0,117600.0,0.35847922]
[1752861993534,0.23705869,117610.0,117600.0,0.36698225]
[1752861994191,0.05,117610.0,117600.0,0.36698153]
[1752861994622,0.0585021,117610.0,117600.0,0.36698153]
[1752861994846,0.05,117610.0,117600.0,0.36698153]
[1752861995080,0.05,117610.0,117600.0,0.36999153]
[1752861995292,0.05,117610.0,117600.0,0.87330723]
[1752861995711,0.10321295,117620.0,117610.0,0.19556071]
[1752861995907,0.0592013,117620.0,117610.0,0.20055071]
[1752861996111,0.0507,117620.0,117610.0,0.71736641]
[1752861996324,0.06,117630.0,117610.0,1.07190726]
[1752861996548,0.01,117630.0,117620.0,0.84507978]
[1752861996761,0.01,117630.0,117620.0,1.29037025]
[1752861997382,0.01,117630.0,117620.0,0.71869493]
[1752861997606,0.01,117630.0,117620.0,1.20461063]
[1752861998062,0.01,117630.0,117620.0,0.71869493]
[1752861998420,0.012,117630.0,117620.0,1.07189063]
[1752861998798,0.012,117630.0,117620.0,1.20481063]
[1752861999021,0.013,117630.0,117620.0,1.20481063]
[1752861999219,0.013,117630.0,117620.0,1.29057025]
[1752862002328,0.013,117630.0,117620.0,0.71889493]
[1752862002549,0.003,117630.0,117620.0,1.20481063]
[1752862006156,0.003,117630.0,117620.0,0.71889493]
[1752862006381,0.003,117630.0,117620.0,1.20481063]
[1752862006593,0.02000137,117630.0,117620.0,1.05734978]
[1752862006794,0.02850238,117630.0,117620.0,1.17135978]
[1752862007019,0.08914346,117630.0,117620.0,1.15623978]
[1752862007228,0.27073927,117630.0,117620.0,1.15623978]
[1752862007426,0.26766927,117630.0,117620.0,0.52052098]
[1752862007637,0.2693379,117630.0,117620.0,0.31134091]
[1752862007871,0.2693379,117630.0,117620.0,0.3283443]
[1752862008080,0.25233581,117630.0,117620.0,0.31984264]
[1752862008970,0.25233581,117630.0,117620.0,0.31134098]
[1752862009208,0.28706939,117630.0,117620.0,0.1328]
[1752862009450,0.25903465,117630.0,117620.0,0.1328]
[1752862011389,0.25903465,117630.0,117620.0,0.3028391]
[1752862011586,0.22516465,117630.0,117620.0,0.31332091]
[1752862011988,0.22516465,117630.0,117620.0,0.31332105]
[1752862012189,0.22823465,117630.0,117620.0,0.33032474]
[1752862012447,0.22823465,117630.0,117620.0,0.33882647]
[1752862012651,0.22823465,117630.0,117620.0,0.19752474]
[1752862012891,0.22823465,117630.0,117620.0,0.33032474]
[1752862013069,0.24323465,117630.0,117620.0,0.33882647]
[1752862013274,0.24323465,117630.0,117620.0,0.34732806]
[1752862013418,0.24323465,117630.0,117620.0,0.33882647]
[1752862013851,0.24323465,117630.0,117620.0,0.33032474]
[1752862014112,0.24323465,117630.0,117620.0,0.32182293]
[1752862015424,0.24323465,117630.0,117620.0,0.34732785]
[1752862015624,0.09021195,117630.0,117620.0,0.34732734]
[1752862015754,0.09871311,117630.0,117620.0,0.34732734]
[1752862015959,0.27723899,117630.0,117620.0,0.32182279]
[1752862016160,0.26873812,117630.0,117620.0,0.32182279]
[1752862016850,0.26873812,117630.0,117620.0,0.33882618]
[1752862017465,0.26023704,117630.0,117620.0,0.13478]
[1752862017671,0.27663704,117630.0,117620.0,0.1328]
[1752862017897,0.27663704,117630.0,117620.0,0.3028391]
[1752862018098,0.27663704,117630.0,117620.0,0.31134105]
[1752862018308,0.26023704,117630.0,117620.0,0.32834452]
[1752862018879,0.08171094,117630.0,117620.0,0.33684596]
[1752862019098,0.09871274,117630.0,117620.0,0.33882596]
[1752862019295,0.09871274,117630.0,117620.0,0.33684596]
[1752862019439,0.27723855,117630.0,117620.0,0.32834452]
[1752862019631,0.1072139,117630.0,117620.0,0.33684604]
[1752862019844,0.27723855,117630.0,117620.0,0.32834452]
[1752862020270,0.27723855,117630.0,117620.0,0.33684604]
[1752862020585,0.27723855,117630.0,117620.0,0.32834452]
[1752862020798,0.27723855,117630.0,117620.0,0.34534763]
[1752862021013,0.26023689,117630.0,117620.0,0.31984286]
[1752862021259,0.26023689,117630.0,117620.0,0.33684597]
[1752862021389,0.26023689,117630.0,117620.0,0.32834445]
[1752862021823,0.26023689,117630.0,117620.0,0.33684597]
[1752862022029,0.26873812,117630.0,117620.0,0.33684597]
[1752862022607,0.26873812,117630.0,117620.0,0.32834445]
[1752862022803,0.09021166,117630.0,117620.0,0.34534741]
[1752862023127,0.10721353,117630.0,117620.0,0.34534741]
[1752862023328,0.28573941,117630.0,117620.0,0.33684597]
[1752862023556,0.09871245,117630.0,117620.0,0.34534741]
[1752862023851,0.09871245,117630.0,117620.0,0.34738741]
[1752862024070,0.27723826,117630.0,117620.0,0.33038459]
[1752862024280,0.09871245,117630.0,117620.0,0.34738769]
[1752862024525,0.27723826,117630.0,117620.0,0.33888625]
[1752862024758,0.26873761,117630.0,117620.0,0.31338105]
[1752862024964,0.26023682,117630.0,117620.0,0.31134105]
[1752862025386,0.26733581,117630.0,117620.0,0.1328]
[1752862027073,0.26733581,117630.0,117620.0,0.3028391]
[1752862027543,0.0721421,117630.0,117620.0,0.33038408]
[1752862027744,0.08064274,117630.0,117620.0,0.81629978]
[1752862028144,0.06150072,117630.0,117620.0,0.85124978]
[1752862028174,0.06150072,117630.0,117620.0,0.36533408]
[1752862028175,0.07850252,117630.0,117620.0,0.36533408]
[1752862028340,0.07850252,117630.0,117620.0,0.82714834]
[1752862028341,0.09550476,117630.0,117620.0,0.82714834]
[1752862028545,0.25702913,117630.0,117620.0,0.79929668]
[1752862028863,0.25702913,117630.0,117620.0,0.33038445]
[1752862029300,0.25904913,117630.0,117620.0,0.33038445]
[1752862030286,0.26219913,117630.0,117620.0,0.33038445]
[1752862030483,0.26049704,117630.0,117620.0,0.31134098]
[1752862030706,0.27549704,117630.0,117620.0,0.31134098]
[1752862030957,0.26699588,117630.0,117620.0,0.1328]
[1752862031955,0.26699588,117630.0,117620.0,0.31134098]
[1752862032531,0.26699588,117630.0,117620.0,0.31122098]
[1752862033206,0.27549689,117630.0,117620.0,0.31122098]
[1752862033408,0.01150058,117630.0,117620.0,0.83968137]
[1752862033619,0.07000123,117630.0,117620.0,0.85763137]
[1752862033748,0.0785021,117630.0,117620.0,0.85763137]
[1752862033943,0.08700318,117630.0,117620.0,0.85763137]
[1752862034151,0.08700318,117630.0,117620.0,0.83968137]
[1752862034360,0.25702783,117630.0,117620.0,0.83968137]
[1752862034559,0.25904841,117630.0,117620.0,0.80767841]
[1752862034760,0.27009776,117630.0,117620.0,0.32176271]
[1752862034967,0.25369776,117630.0,117620.0,0.33026423]
[1752862035705,0.25369776,117630.0,117620.0,0.32176279]
[1752862035921,0.26939776,117630.0,117620.0,0.32176279]
[1752862036148,0.26939776,117630.0,117620.0,0.3027191]
[1752862036458,0.27659689,117630.0,117620.0,0.31122105]
[1752862036665,0.27659689,117630.0,117620.0,0.32822466]
[1752862036899,0.26089689,117630.0,117620.0,0.34522791]
[1752862037123,0.26089689,117630.0,117620.0,0.21254791]
[1752862037346,0.26089689,117630.0,117620.0,0.34522791]
[1752862037571,0.26089689,117630.0,117620.0,0.33672632]
[1752862037713,0.26089689,117630.0,117620.0,0.20404632]
[1752862037932,0.26089689,117630.0,117620.0,0.32822466]
[1752862038146,0.26089689,117630.0,117620.0,0.33672632]
[1752862039124,0.25239581,117630.0,117620.0,0.31972293]
[1752862039477,0.26849581,117630.0,117620.0,0.18704293]
[1752862039685,0.25999465,117630.0,117620.0,0.3027191]
[1752862039927,0.25999465,117630.0,117620.0,0.17854105]
[1752862040130,0.05850181,117620.0,117610.0,0.73035923]
[1752862040277,0.05850181,117620.0,117610.0,0.86507923]
[1752862040473,0.05850181,117620.0,117610.0,0.72389713]
[1752862040676,0.25921625,117620.0,117610.0,0.35516158]
[1752862041120,0.25921625,117620.0,117610.0,0.84107728]
[1752862041325,0.26021625,117620.0,117610.0,0.84957952]
[1752862041573,0.27581625,117620.0,117610.0,0.83903743]
[1752862041790,0.27581625,117620.0,117610.0,0.84753981]
[1752862042032,0.27581625,117620.0,117610.0,0.85604212]
[1752862042252,0.26021625,117620.0,117610.0,0.85808212]
[1752862042470,0.26021625,117620.0,117610.0,0.84957981]
[1752862042684,0.26021625,117620.0,117610.0,0.84107743]
[1752862042933,0.26021625,117620.0,117610.0,0.84957974]
[1752862043171,0.26556813,117620.0,117610.0,0.84957974]
[1752862043405,0.24856474,117620.0,117610.0,0.83257497]
[1752862043658,0.24006293,117620.0,117610.0,0.83257497]
[1752862043892,0.23156105,117620.0,117610.0,0.83257497]
[1752862044625,0.2230591,117620.0,117610.0,0.81556984]
[1752862044848,0.2262091,117620.0,117610.0,0.13472]
[1752862045087,0.2418091,117620.0,117610.0,0.13472]
[1752862045292,0.2418091,117620.0,117610.0,0.6206357]
[1752862045499,0.2418091,117620.0,117610.0,0.13472]
[1752862045710,0.2418091,117620.0,117610.0,0.00204]
[1752862045948,0.2418091,117620.0,117610.0,0.13268]
[1752862046654,0.2418091,117620.0,117610.0,0.30273356]
[1752862047284,0.2418091,117620.0,117610.0,0.13268]
[1752862047463,0.2418091,117620.0,117610.0,0.30273356]
[1752862047712,0.27750443,117620.0,117610.0,0.32177869]
[1752862048023,0.28600616,117620.0,117610.0,0.33878338]
[1752862048156,0.23804278,117620.0,117610.0,0.34728555]
[1752862048392,0.23804278,117620.0,117610.0,0.83320125]
[1752862048596,0.23804278,117620.0,117610.0,0.82469908]
[1752862048796,0.23804278,117620.0,117610.0,0.81619677]
[1752862048993,0.06800325,117620.0,117610.0,0.81619677]
[1752862049225,0.07650513,117620.0,117610.0,0.81619677]
[1752862049428,0.06800325,117620.0,117610.0,0.33028107]
[1752862049643,0.06800325,117620.0,117610.0,0.81619677]
[1752862049988,0.07650448,117620.0,117610.0,0.82469894]
[1752862050677,0.07650441,117620.0,117610.0,0.82469894]
[1752862050890,0.06800282,117620.0,117610.0,0.82469894]
[1752862051079,0.051,117620.0,117610.0,0.84373894]
[1752862051337,0.001,117620.0,117610.0,0.94529856]
[1752862051544,0.051,117620.0,117610.0,0.94529856]
[1752862051963,0.051,117620.0,117610.0,0.85953894]
[1752862053413,0.0595013,117620.0,117610.0,0.85953894]
[1752862053823,0.051,117620.0,117610.0,0.85953894]
[1752862056586,0.051,117620.0,117610.0,0.37362324]
[1752862056809,0.05950137,117620.0,117610.0,0.37362324]
[1752862057047,0.06800289,117620.0,117610.0,0.85953894]
[1752862057308,0.05950137,117620.0,117610.0,0.85953894]
[1752862057505,0.051,117620.0,117610.0,0.85953894]
[1752862057773,0.051,117620.0,117610.0,0.94529856]
[1752862058439,0.05950137,117620.0,117610.0,0.94529856]
[1752862059107,0.06800289,117620.0,117610.0,0.94529856]
[1752862059558,0.08500621,117620.0,117610.0,0.92949856]
[1752862059789,0.07650448,117620.0,117610.0,0.92949856]
[1752862060251,0.08500621,117620.0,117610.0,0.92949856]
[1752862060506,0.07650448,117620.0,117610.0,0.84373894]
[1752862060934,0.06800289,117620.0,117610.0,0.84373894]
[1752862061176,0.05950137,117620.0,117610.0,0.84373894]
[1752862061400,0.0765044,117620.0,117610.0,0.84373894]
[1752862062375,0.08500606,117620.0,117610.0,0.84373894]
[1752862062812,0.25985264,117620.0,117610.0,0.30477356]
[1752862063012,0.25985264,117620.0,117610.0,0.31123616]
[1752862063224,0.26655098,117620.0,117610.0,0.31973883]
[1752862063848,0.18705811,117610.0,117600.0,0.21360905]
[1752862064080,0.23915876,117610.0,117600.0,0.21689541]
[1752862064303,0.07221441,117610.0,117600.0,0.83545111]
[1752862064533,0.07550687,117610.0,117600.0,0.859754]
[1752862064751,0.08400947,117610.0,117600.0,0.843954]
[1752862064995,0.25406303,117610.0,117600.0,0.843954]
[1752862065234,0.2625657,117610.0,117600.0,0.84395414]
[1752862065436,0.0840094,117610.0,117600.0,0.36854133]
[1752862065640,0.0840094,117610.0,117600.0,0.85445703]
[1752862065820,0.25406296,117610.0,117600.0,0.84595414]
[1752862066151,0.25406296,117610.0,117600.0,0.36003844]
[1752862066368,0.24766086,117610.0,117600.0,0.84595414]
[1752862066583,0.06910477,117610.0,117600.0,0.85445703]
[1752862066791,0.05,117610.0,117600.0,0.39608702]
[1752862067006,0.06700441,117610.0,117600.0,0.87399703]
[1752862067460,0.07550672,117610.0,117600.0,0.38808133]
[1752862067670,0.07550672,117610.0,117600.0,0.87399703]
[1752862068055,0.26256548,117610.0,117600.0,0.84595414]
[1752862068295,0.26256548,117610.0,117600.0,0.8544571]
[1752862068514,0.25616338,117610.0,117600.0,0.83745118]
[1752862068777,0.25927338,117610.0,117600.0,0.84595421]
[1752862068984,0.25927338,117610.0,117600.0,0.36003851]
[1752862069194,0.25927338,117610.0,117600.0,0.83745118]
[1752862069611,0.25077114,117610.0,117600.0,0.84595429]
[1752862069995,0.24226847,117610.0,117600.0,0.8204116]
[1752862070203,0.25077107,117610.0,117600.0,0.8204116]
[1752862070364,0.26677107,117610.0,117600.0,0.32391279]
[1752862070582,0.26677107,117610.0,117600.0,0.80132531]
[1752862070784,0.26677107,117610.0,117600.0,0.81190842]
[1752862071638,0.26677107,117610.0,117600.0,0.82041138]
[1752862071836,0.27527374,117610.0,117600.0,0.82041138]
[1752862072061,0.07760751,117610.0,117600.0,0.91467389]
[1752862072256,0.24766107,117610.0,117600.0,0.34299857]
[1752862072457,0.25616374,117610.0,117600.0,0.82891427]
[1752862073064,0.07760751,117610.0,117600.0,0.82891427]
[1752862073257,0.05850217,117610.0,117600.0,0.82891427]
[1752862073476,0.05850217,117610.0,117600.0,0.86395427]
[1752862073717,0.06700455,117610.0,117600.0,0.86395427]
[1752862073964,0.05,117610.0,117600.0,0.86395427]
[1752862074190,0.05850217,117610.0,117600.0,0.86395427]
[1752862074417,0.05,117610.0,117600.0,0.84785427]
[1752862074615,0.0585021,117610.0,117600.0,0.84785427]
[1752862075472,0.05,117610.0,117600.0,0.84785427]
[1752862075681,0.0585021,117610.0,117600.0,0.84785427]
[1752862075948,0.0585021,117610.0,117600.0,0.93361389]
[1752862076863,0.06700434,117610.0,117600.0,0.84785427]
[1752862077108,0.0585021,117610.0,117600.0,0.84785427]
[1752862077524,0.05,117610.0,117600.0,0.84785427]
[1752862078208,0.0585021,117610.0,117600.0,0.84785427]
[1752862078420,0.05,117610.0,117600.0,0.84785427]
[1752862079297,0.05,117610.0,117600.0,0.90950297]
[1752862080220,0.05850202,117610.0,117600.0,0.90950297]
[1752862080427,0.05850202,117610.0,117600.0,0.83205427]
[1752862080859,0.0585021,117610.0,117600.0,0.83205427]
[1752862081125,0.0755068,117610.0,117600.0,0.34299857]